lending/lending_fUSD_20250418
["ID","MTS","AMOUNT","RATE_DAILY","PERIOD"]
[358366066,1744996273080,-1000.0,0.00063013,120]
[358366067,1744996273090,-307.37373321,0.00063013,120]
[358366068,1744996273099,-965.19,0.00063013,120]
[358366069,1744996273109,-4382.5,0.00063013,120]
[358366070,1744996273118,-1010.33,0.00063013,120]
[358366071,1744996273128,-198.39932572,0.00063013,120]
[358366072,1744996273137,-22246.66,0.00063013,7]
[358366073,1744996273147,-500.0,0.00063013,120]
[358366074,1744996273156,-500.0,0.00063013,120]
[358366075,1744996273166,-500.0,0.00063013,120]
[358366076,1744996273175,-500.0,0.00063013,120]
[358366077,1744996273184,-5347.16,0.00063013,120]
[358366078,1744996273193,-2079.52,0.00063013,120]
[358366079,1744996273203,-1049.66,0.00063013,2]
[358366080,1744996273213,-696.69,0.00063013,120]
[358366081,1744996273222,-792.36,0.00063013,120]
[358366082,1744996273231,-689.33,0.00063013,120]
[358366083,1744996273242,-521.93,0.00063013,120]
[358366084,1744996273252,-1078.98,0.00063013,120]
[358366085,1744996273261,-1469.68,0.00063013,120]
[358366086,1744996273270,-2800.0,0.0006315,120]
[358366087,1744996273280,-940.93,0.00063162,2]
[358366088,1744996273290,-240.10145786,0.0006333,90]
[358366089,1744996273300,-2800.0,0.00063424,120]
[358366090,1744996273314,-1500.0,0.00063445,15]
[358366091,1744996273324,-500.0,0.00063505,120]
[358366092,1744996273333,-500.0,0.00063561,120]
[358366093,1744996273343,-500.0,0.00063561,120]
[358366094,1744996273356,-541.25,0.00063561,120]
[358366095,1744996273366,-5219.14,0.00063561,120]
[358366096,1744996273375,-1255.97,0.00063561,120]
[358366097,1744996273385,-1216.79,0.00063561,120]
[358366098,1744996273396,-685.42,0.00063561,120]
[358366099,1744996273405,-1098.69,0.00063561,120]
[358366100,1744996273415,-656.35,0.00063561,120]
[358366101,1744996273425,-564.2,0.00063561,120]
[358366102,1744996273436,-625.93,0.00063561,120]
[358366103,1744996273446,-1071.84,0.00063561,120]
[358366104,1744996273455,-965.19,0.00063561,120]
[358366105,1744996273465,-4382.5,0.00063561,120]
[358366106,1744996273475,-1010.33,0.00063561,120]
[358366107,1744996273484,-22246.66,0.00063561,7]
[358366108,1744996273494,-500.0,0.00063561,120]
[358366109,1744996273503,-500.0,0.00063561,120]
[358366110,1744996273513,-500.0,0.00063561,120]
[358366111,1744996273522,-500.0,0.00063561,120]
[358366112,1744996273531,-5347.16,0.00063561,120]
[358366113,1744996273541,-2079.52,0.00063561,120]
[358366114,1744996273552,-1049.66,0.00063561,2]
[358366115,1744996273561,-696.69,0.00063561,120]
[358366116,1744996273570,-792.36,0.00063561,120]
[358366117,1744996273579,-689.33,0.00063561,120]
[358366118,1744996273589,-521.93,0.00063561,120]
[358366119,1744996273599,-1078.98,0.00063561,120]
[358366120,1744996273608,-1469.68,0.00063561,120]
[358366121,1744996273617,-152.72,0.00063655,120]
[358366122,1744996273626,-1329.0,0.00063688,120]
[358366123,1744996273635,-1281.0,0.00063688,120]
[358366124,1744996273644,-2800.0,0.00063698,120]
[358366125,1744996273653,-296.0,0.0006375,30]
[358366126,1744996273662,-500.0,0.00063908,2]
[358366127,1744996273672,-500.0,0.00063908,2]
[358366128,1744996273681,-500.0,0.00063908,2]
[358366129,1744996273691,-500.0,0.00063908,2]
[358366130,1744996273700,-500.0,0.00063908,2]
[358366131,1744996273709,-198.925575,0.00063908,2]
[358366132,1744996273719,-500.0,0.00063917,30]
[358366133,1744996273728,-150.0,0.00063917,30]
[358366134,1744996273737,-551.22615562,0.00064,120]
[358366135,1744996273746,-257.32,0.00064109,120]
[358366136,1744996273755,-500.0,0.00064109,120]
[358366137,1744996273765,-541.25,0.00064109,120]
[358366138,1744996273773,-5219.14,0.00064109,120]
[358366139,1744996273782,-1255.97,0.00064109,120]
[358366140,1744996273792,-1216.79,0.00064109,120]
[358366141,1744996273801,-685.42,0.00064109,120]
[358366142,1744996273810,-1098.69,0.00064109,120]
[358366143,1744996273819,-656.35,0.00064109,120]
[358366144,1744996273828,-625.93,0.00064109,120]
[358366145,1744996273837,-1071.84,0.00064109,120]
[358366146,1744996273846,-965.19,0.00064109,120]
[358366147,1744996273941,-4382.5,0.00064109,120]
[358366148,1744996273953,-1010.33,0.00064109,120]
[358366149,1744996273963,-22246.66,0.00064109,7]
[358366150,1744996273972,-500.0,0.00064109,120]
[358366151,1744996273982,-500.0,0.00064109,120]
[358366152,1744996273991,-528.47,0.00064109,120]
[358366153,1744996274001,-500.0,0.00064109,120]
[358366154,1744996274011,-5347.16,0.00064109,120]
[358366155,1744996274020,-2079.52,0.00064109,120]
[358366156,1744996274030,-1049.66,0.00064109,2]
[358366157,1744996274040,-696.69,0.00064109,120]
[358366158,1744996274050,-792.36,0.00064109,120]
[358366159,1744996274060,-689.33,0.00064109,120]
[358366160,1744996274070,-521.93,0.00064109,120]
[358366161,1744996274080,-1078.98,0.00064109,120]
[358366162,1744996274090,-1469.68,0.00064109,120]
[358366163,1744996274100,-2800.0,0.00064246,120]
[358366164,1744996274109,-500.0,0.00064318,7]
[358366165,1744996274119,-500.0,0.00064318,7]
[358366166,1744996274129,-500.0,0.00064318,7]
[358366167,1744996274138,-150.0,0.00064318,7]
[358366168,1744996274148,-500.0,0.00064318,7]
[358366169,1744996274157,-500.0,0.00064318,7]
[358366170,1744996274167,-333.58,0.00064383,120]
[358366171,1744996274176,-466.02718662,0.00064657,120]
[358366172,1744996274186,-541.25,0.00064657,120]
[358366173,1744996274195,-5219.14,0.00064657,120]
[358366174,1744996274205,-1255.97,0.00064657,120]
[358366175,1744996274215,-1216.79,0.00064657,120]
[358366176,1744996274225,-685.42,0.00064657,120]
[358366177,1744996274234,-1098.69,0.00064657,120]
[358366178,1744996274243,-656.35,0.00064657,120]
[358366179,1744996274252,-625.93,0.00064657,120]
[358366180,1744996274262,-1071.84,0.00064657,120]
[358366181,1744996274272,-965.19,0.00064657,120]
[358366182,1744996274281,-4382.5,0.00064657,120]
[358366183,1744996274291,-1010.33,0.00064657,120]
[358366184,1744996274300,-22246.66,0.00064657,7]
[358366185,1744996274312,-554.21766456,0.00064657,120]
[358366186,1744996274322,-500.0,0.00064657,120]
[358366187,1744996274331,-500.0,0.00064657,120]
[358366188,1744996274340,-5347.16,0.00064657,120]
[358366189,1744996274351,-2079.52,0.00064657,120]
[358366190,1744996274361,-1049.66,0.00064657,2]
[358366191,1744996274371,-696.69,0.00064657,120]
[358366192,1744996274380,-792.36,0.00064657,120]
[358366193,1744996274390,-689.33,0.00064657,120]
[358366194,1744996274400,-521.93,0.00064657,120]
[358366195,1744996274409,-1078.98,0.00064657,120]
[358366196,1744996274418,-1469.68,0.00064657,120]
[358366197,1744996274428,-378.0,0.00064658,120]
[358366198,1744996274437,-151.0,0.00064658,120]
[358366199,1744996274446,-2800.0,0.00064794,120]
[358366200,1744996274456,-1509.25326715,0.0006489,120]
[358366201,1744996274466,-1509.25326715,0.0006489,120]
[358366202,1744996274477,-2034.01,0.000649,60]
[358366203,1744996274487,-582.0,0.0006498,120]
[358366204,1744996274496,-582.0,0.0006499,120]
[358366205,1744996274506,-208.47644403,0.00065,120]
[358366206,1744996274515,-493.0,0.00065,2]
[358366207,1744996274525,-515.12284104,0.00065,120]
[358366208,1744996274534,-151.6,0.00065,30]
[358366209,1744996274544,-1000.0,0.00065,120]
[358366210,1744996274553,-276.5302668,0.00065,66]
[358366211,1744996274563,-2690.296999,0.00065,120]
[358366212,1744996274572,-3750.92128206,0.00065098,5]
[358366213,1744996274582,-541.25,0.00065205,120]
[358366214,1744996274593,-5219.14,0.00065205,120]
[358366215,1744996274602,-1255.97,0.00065205,120]
[358366216,1744996274612,-1216.79,0.00065205,120]
[358366217,1744996274621,-685.42,0.00065205,120]
[358366218,1744996274630,-1098.69,0.00065205,120]
[358366219,1744996274640,-656.35,0.00065205,120]
[358366220,1744996274650,-625.93,0.00065205,120]
[358366221,1744996274659,-1071.84,0.00065205,120]
[358366222,1744996274668,-965.19,0.00065205,120]
[358366223,1744996274678,-4382.5,0.00065205,120]
[358366224,1744996274687,-1010.33,0.00065205,120]
[358366225,1744996274697,-22246.66,0.00065205,7]
[358366226,1744996274706,-483.81275721,0.00065205,120]
[358366227,1744996274716,-500.0,0.00065205,120]
[358366228,1744996274725,-5347.16,0.00065205,120]
[358366229,1744996274735,-2079.52,0.00065205,120]
[358366230,1744996274744,-1049.66,0.00065205,2]
[358366231,1744996274754,-696.69,0.00065205,120]
[358366232,1744996274763,-792.36,0.00065205,120]
[358366233,1744996274773,-689.33,0.00065205,120]
[358366234,1744996274783,-521.93,0.00065205,120]
[358366235,1744996274792,-1078.98,0.00065205,120]
[358366236,1744996274801,-1469.68,0.00065205,120]
[358366237,1744996274811,-510.73113217,0.00065232,100]
[358366238,1744996274819,-2800.0,0.00065342,120]
[358366239,1744996274829,-940.93,0.00065426,2]
[358366240,1744996274838,-2049.0,0.00065668,120]
[358366241,1744996274847,-200.0,0.00065671,15]
[358366242,1744996274857,-333.58,0.00065753,120]
[358366243,1744996274867,-541.25,0.00065753,120]
[358366244,1744996274876,-5219.14,0.00065753,120]
[358366245,1744996274886,-1255.97,0.00065753,120]
[358366246,1744996274896,-1216.79,0.00065753,120]
[358366247,1744996274905,-685.42,0.00065753,120]
[358366248,1744996274915,-1098.69,0.00065753,120]
[358366249,1744996274924,-656.35,0.00065753,120]
[358366250,1744996274933,-625.93,0.00065753,120]
[358366251,1744996274942,-1071.84,0.00065753,120]
[358366252,1744996274951,-965.19,0.00065753,120]
[358366253,1744996274960,-4382.5,0.00065753,120]
[358366254,1744996274970,-1010.33,0.00065753,120]
[358366255,1744996274979,-22246.66,0.00065753,7]
[358366256,1744996274989,-500.0,0.00065753,120]
[358366257,1744996274998,-5347.16,0.00065753,120]
[358366258,1744996275008,-2079.52,0.00065753,120]
[358366259,1744996275017,-1049.66,0.00065753,2]
[358366260,1744996275026,-696.69,0.00065753,120]
[358366261,1744996275036,-792.36,0.00065753,120]
[358366262,1744996275045,-689.33,0.00065753,120]
[358366263,1744996275055,-521.93,0.00065753,120]
[358366264,1744996275064,-1078.98,0.00065753,120]
[358366265,1744996275074,-1469.68,0.00065753,120]
[358366266,1744996275084,-500.0,0.00065753,30]
[358366267,1744996275093,-600.0,0.00065753,120]
[358366268,1744996275103,-600.0,0.00065753,120]
[358366269,1744996275113,-600.0,0.00065753,120]
[358366270,1744996275125,-600.0,0.00065753,120]
[358366271,1744996275135,-600.0,0.00065753,120]
[358366272,1744996275145,-600.0,0.00065753,120]
[358366273,1744996275155,-600.0,0.00065753,120]
[358366274,1744996275165,-600.0,0.00065753,120]
[358366275,1744996275175,-600.0,0.00065753,120]
[358366276,1744996275185,-600.0,0.00065753,120]
[358366277,1744996275195,-600.0,0.00065753,120]
[358366278,1744996275205,-600.0,0.00065753,120]
[358366279,1744996275216,-2800.0,0.0006589,120]
[358366280,1744996275227,-4141.0,0.00065927,20]
[358366281,1744996275239,-252.13546393,0.00066,120]
[358366282,1744996275249,-215.28424796,0.00066,30]
[358366283,1744996275259,-1308.38869997,0.00066,120]
[358366284,1744996275269,-900.0,0.00066,67]
[358366285,1744996275357,-500.0,0.00066054,120]
[358366286,1744996275367,-487.06101953,0.00066054,120]
[358366287,1744996275380,-541.25,0.00066301,120]
[358366288,1744996275389,-5219.14,0.00066301,120]
[358366289,1744996275398,-1255.97,0.00066301,120]
[358366290,1744996275408,-1216.79,0.00066301,120]
[358366291,1744996275418,-685.42,0.00066301,120]
[358366292,1744996275428,-1098.69,0.00066301,120]
[358366293,1744996275437,-656.35,0.00066301,120]
[358366294,1744996275446,-625.93,0.00066301,120]
[358366295,1744996275455,-1071.84,0.00066301,120]
[358366296,1744996275464,-965.19,0.00066301,120]
[358366297,1744996275473,-4382.5,0.00066301,120]
[358366298,1744996275483,-1010.33,0.00066301,120]
[358366299,1744996275492,-22246.66,0.00066301,7]
[358366300,1744996275502,-500.0,0.00066301,120]
[358366301,1744996275511,-5347.16,0.00066301,120]
[358366302,1744996275521,-2079.52,0.00066301,120]
[358366303,1744996275531,-1049.66,0.00066301,2]
[358366304,1744996275540,-696.69,0.00066301,120]
[358366305,1744996275550,-792.36,0.00066301,120]
[358366306,1744996275560,-689.33,0.00066301,120]
[358366307,1744996275570,-521.93,0.00066301,120]
[358366308,1744996275580,-1078.98,0.00066301,120]
[358366309,1744996275590,-1469.68,0.00066301,120]
[358366310,1744996275600,-2800.0,0.00066438,120]
[358366311,1744996275610,-164.46236561,0.00066493,120]
[358366312,1744996275618,-1000.0,0.000666,120]
[358366313,1744996275628,-567.971,0.00066688,120]
[358366314,1744996275638,-541.25,0.00066849,120]
[358366315,1744996275647,-5219.14,0.00066849,120]
[358366316,1744996275658,-1255.97,0.00066849,120]
[358366317,1744996275668,-1216.79,0.00066849,120]
[358366318,1744996275678,-685.42,0.00066849,120]
[358366319,1744996275687,-1098.69,0.00066849,120]
[358366320,1744996275696,-656.35,0.00066849,120]
[358366321,1744996275706,-625.93,0.00066849,120]
[358366322,1744996275715,-1071.84,0.00066849,120]
[358366323,1744996275725,-965.19,0.00066849,120]
[358366324,1744996275734,-4382.5,0.00066849,120]
[358366325,1744996275744,-1010.33,0.00066849,120]
[358366326,1744996275754,-22246.66,0.00066849,7]
[358366327,1744996275763,-446.91237853,0.00066849,120]
[358366328,1744996275773,-5347.16,0.00066849,120]
[358366329,1744996275782,-2079.52,0.00066849,120]
[358366330,1744996275792,-1049.66,0.00066849,2]
[358366331,1744996275802,-696.69,0.00066849,120]
[358366332,1744996275811,-792.36,0.00066849,120]
[358366333,1744996275820,-689.33,0.00066849,120]
[358366334,1744996275829,-521.93,0.00066849,120]
[358366335,1744996275838,-1078.98,0.00066849,120]
[358366336,1744996275847,-1469.68,0.00066849,120]
[358366337,1744996275856,-164.46236561,0.00066959,120]
[358366338,1744996275866,-2800.0,0.00066986,120]
[358366339,1744996275875,-8553.39819889,0.00067,120]
[358366340,1744996275885,-20000.0,0.00067,120]
[358366341,1744996275895,-1000.0,0.00067,120]
[358366342,1744996275904,-900.0,0.00067,68]
[358366343,1744996275913,-167.536342,0.00067003,120]
[358366344,1744996275922,-350.0,0.00067123,120]
[358366345,1744996275931,-350.0,0.00067123,120]
[358366346,1744996275941,-350.0,0.00067123,120]
[358366347,1744996275950,-350.0,0.00067123,120]
[358366348,1744996275960,-350.0,0.00067123,120]
[358366349,1744996275969,-350.0,0.00067123,120]
[358366350,1744996275983,-350.0,0.00067123,120]
[358366351,1744996276001,-350.0,0.00067123,120]
[358366352,1744996276018,-350.0,0.00067123,120]
[358366353,1744996276037,-350.0,0.00067123,120]
[358366354,1744996276053,-350.0,0.00067123,120]
[358366355,1744996276068,-350.0,0.00067123,120]
[358366356,1744996276086,-333.58,0.00067123,120]
[358366357,1744996276103,-167.536342,0.00067228,120]
[358366358,1744996276122,-541.39127205,0.00067397,120]
[358366359,1744996276141,-5219.35378844,0.00067397,120]
[358366360,1744996276158,-1256.16828378,0.00067397,120]
[358366361,1744996276175,-1216.82,0.00067397,120]
[358366362,1744996276189,-685.51835774,0.00067397,120]
[358366363,1744996276207,-1098.7952,0.00067397,120]
[358366364,1744996276219,-656.5787429,0.00067397,120]
[358366365,1744996276235,-625.99517791,0.00067397,120]
[358366366,1744996276250,-1072.03318643,0.00067397,120]
[358366367,1744996276265,-965.21400948,0.00067397,120]
[358366368,1744996276280,-4382.62888594,0.00067397,120]
[358366369,1744996276295,-1010.37,0.00067397,120]
[358366370,1744996276312,-22246.76212926,0.00067397,7]
[358366371,1744996276327,-5347.21758209,0.00067397,120]
[358366372,1744996276342,-2079.58150001,0.00067397,120]
[358366373,1744996276358,-1049.72,0.00067397,2]
[358366374,1744996276372,-696.80746249,0.00067397,120]
[358366375,1744996276386,-792.58179828,0.00067397,120]
[358366376,1744996276402,-689.39524984,0.00067397,120]
[358366377,1744996276417,-522.14634827,0.00067397,120]
[358366378,1744996276431,-1079.07325209,0.00067397,120]
[358366379,1744996276445,-1469.73714767,0.00067397,120]
[358366380,1744996276460,-164.46236561,0.00067452,120]
[358366381,1744996276474,-2034.01,0.000675,60]
[358366382,1744996276487,-2800.0,0.00067534,120]
[358366383,1744996276501,-940.93,0.00067689,2]
[358366384,1744996276515,-164.46236561,0.00067945,120]
[358366385,1744996276529,-296.0,0.0006799,30]
[358366386,1744996276544,-873.0,0.00068,120]
[358366387,1744996276558,-214.0,0.00068,120]
[358366388,1744996276573,-169.0,0.00068,120]
[358366389,1744996276587,-900.0,0.00068,69]
[358366390,1744996276601,-2800.0,0.00068082,120]
[358366391,1744996276616,-150.0,0.00068378,120]
[358366392,1744996276630,-158.06087516,0.00068411,15]
[358366393,1744996276645,-164.46236561,0.00068438,120]
[358366394,1744996276659,-548.38766939,0.0006849,120]
[358366395,1744996276674,-548.38766939,0.0006849,120]
[358366396,1744996276691,-548.38766939,0.0006849,120]
[358366397,1744996276706,-548.38766939,0.0006849,120]
[358366398,1744996276721,-548.38766939,0.0006849,120]
[358366399,1744996276735,-548.38766939,0.0006849,120]
[358366400,1744996276751,-548.38766939,0.0006849,120]
[358366401,1744996276764,-548.38766939,0.0006849,120]
[358366402,1744996276778,-548.38766939,0.0006849,120]
[358366403,1744996276792,-548.38766939,0.0006849,120]
[358366404,1744996276807,-548.38766939,0.0006849,120]
[358366405,1744996276821,-548.38766939,0.0006849,120]
[358366406,1744996276836,-548.38766939,0.0006849,120]
[358366407,1744996276852,-548.38766939,0.0006849,120]
[358366408,1744996276867,-548.38766939,0.0006849,120]
[358366409,1744996276881,-548.38766939,0.0006849,120]
[358366410,1744996276898,-548.38766939,0.0006849,120]
[358366411,1744996276912,-548.38766939,0.0006849,120]
[358366412,1744996277028,-548.38766939,0.0006849,120]
[358366413,1744996277051,-548.38,0.0006849,120]
[358366414,1744996277061,-1279.57122857,0.0006849,120]
[358366415,1744996277070,-1279.57122857,0.0006849,120]
[358366416,1744996277080,-1279.57122857,0.0006849,120]
[358366417,1744996277089,-1279.57122857,0.0006849,120]
[358366418,1744996277099,-1279.57122857,0.0006849,120]
[358366419,1744996277108,-1279.57122857,0.0006849,120]
[358366420,1744996277117,-1279.57122857,0.0006849,120]
[358366421,1744996277127,-1279.57122857,0.0006849,120]
[358366422,1744996277136,-1279.57122857,0.0006849,120]
[358366423,1744996277145,-1279.57122857,0.0006849,120]
[358366424,1744996277155,-1279.57122857,0.0006849,120]
[358366425,1744996277164,-1279.57122857,0.0006849,120]
[358366426,1744996277173,-1279.57122857,0.0006849,120]
[358366427,1744996277183,-1279.57122857,0.0006849,120]
[358366428,1744996277192,-1279.57122857,0.0006849,120]
[358366429,1744996277201,-1279.57122857,0.0006849,120]
[358366430,1744996277210,-1279.57122857,0.0006849,120]
[358366431,1744996277220,-333.58,0.00068493,120]
[358366432,1744996277232,-500.0,0.00068493,120]
[358366433,1744996277242,-1500.0,0.00068493,120]
[358366434,1744996277255,-1500.0,0.00068493,120]
[358366435,1744996277264,-926.39846747,0.00068493,120]
[358366436,1744996277273,-500.0,0.00068493,120]
[358366437,1744996277282,-500.0,0.00068493,120]
[358366438,1744996277292,-500.0,0.00068493,120]
[358366439,1744996277301,-500.0,0.00068493,120]
[358366440,1744996277314,-432.0820108,0.00068493,120]
[358366441,1744996277324,-500.0,0.00068493,120]
[358366442,1744996277333,-999.0,0.00068493,120]
[358366443,1744996277342,-406.19834266,0.00068493,2]
[358366444,1744996277352,-150.0,0.00068493,7]
[358366445,1744996277361,-150.0,0.00068493,15]
[358366446,1744996277370,-411.13558884,0.00068493,2]
[358366447,1744996277379,-1023985.36549059,0.000686,120]
[358366448,1744996277390,-168.25741301,0.000686,28]
[358366449,1744996277400,-1342.82044552,0.0006863,120]
[358366450,1744996277408,-2049.0,0.00068668,120]
[358366451,1744996277418,-243.7190056,0.00068668,2]
[358366452,1744996277428,-162.47933706,0.00068668,2]
[358366453,1744996277437,-1347047.95699828,0.000687,120]
[358366454,1744996277446,-1325.70104515,0.00068753,119]
[358366455,1744996277455,-1279.57122857,0.00068832,120]
[358366456,1744996277464,-238.62442314,0.0006888,120]
[358366457,1744996277473,-300.0,0.000689,25]
[358366458,1744996277483,-164.46236561,0.00068932,120]
[358366459,1744996277492,-585.77,0.0006898,120]
[358366460,1744996277503,-582.0,0.0006899,120]
[358366461,1744996277514,-900.0,0.00069,70]
[358366462,1744996277523,-9620.64713079,0.00069,120]
[358366463,1744996277533,-360.0,0.00069,90]
[358366464,1744996277543,-250.0,0.00069041,15]
[358366465,1744996277554,-59362.22,0.000693,60]
[358366466,1744996277563,-1279.57122857,0.00069356,120]
[358366467,1744996277571,-152.72,0.0006936,120]
[358366468,1744996277580,-3702.16891281,0.00069387,2]
[358366469,1744996277590,-500.0,0.00069387,120]
[358366470,1744996277599,-500.0,0.00069387,120]
[358366471,1744996277609,-500.0,0.00069387,120]
[358366472,1744996277618,-500.0,0.00069387,120]
[358366473,1744996277627,-500.0,0.00069387,120]
[358366474,1744996277636,-500.0,0.00069387,120]
[358366475,1744996277645,-500.0,0.00069387,120]
[358366476,1744996277653,-500.0,0.00069387,120]
[358366477,1744996277663,-946.0,0.00069387,120]
[358366478,1744996277671,-500.0,0.00069387,120]
[358366479,1744996277683,-500.0,0.00069387,120]
[358366480,1744996277692,-500.0,0.00069387,120]
[358366481,1744996277702,-500.0,0.00069387,120]
[358366482,1744996277712,-500.0,0.00069387,120]
[358366483,1744996277721,-500.0,0.00069387,120]
[358366484,1744996277730,-500.0,0.00069387,120]
[358366485,1744996277740,-500.0,0.00069387,120]
[358366486,1744996277749,-500.0,0.00069387,120]
[358366487,1744996277758,-500.0,0.00069387,120]
[358366488,1744996277767,-500.0,0.00069387,120]
[358366489,1744996277776,-500.0,0.00069387,120]
[358366490,1744996277786,-500.0,0.00069387,120]
[358366491,1744996277795,-500.0,0.00069387,120]
[358366492,1744996277804,-500.0,0.00069387,120]
[358366493,1744996277814,-850.0,0.00069387,120]
[358366494,1744996277825,-500.0,0.00069387,2]
[358366495,1744996277835,-500.0,0.00069387,2]
[358366496,1744996277845,-500.0,0.00069387,2]
[358366497,1744996277853,-500.0,0.00069387,2]
[358366498,1744996277863,-299.5230044,0.00069387,2]
[358366499,1744996277872,-500.0,0.00069396,30]
[358366500,1744996277881,-250.0,0.00069396,30]
[358366501,1744996277890,-164.46236561,0.00069425,120]
[358366502,1744996277899,-350.0,0.00069589,15]
[358366503,1744996277909,-300.0,0.000697,25]
[358366504,1744996277918,-581.13834931,0.00069797,7]
[358366505,1744996277928,-500.0,0.00069797,7]
[358366506,1744996277937,-500.0,0.00069797,7]
[358366507,1744996277947,-250.0,0.00069797,7]
[358366508,1744996277956,-500.0,0.00069797,7]
[358366509,1744996277965,-500.0,0.00069797,7]
[358366510,1744996277974,-1325.70104515,0.00069798,119]
[358366511,1744996277984,-3272.69607,0.000698,120]
[358366512,1744996277994,-300.0,0.000698,25]
[358366513,1744996278003,-3000.0,0.0006985,35]
[358366514,1744996278012,-2737.817,0.0006985,35]
[358366515,1744996278022,-333.58,0.00069863,120]
[358366516,1744996278032,-1279.57,0.0006988,120]
[358366517,1744996278042,-177.93,0.0006988,120]
[358366518,1744996278052,-1509.25326715,0.0006989,120]
[358366519,1744996278062,-1509.25326715,0.0006989,120]
[358366520,1744996278072,-510.73113217,0.00069898,120]
[358366521,1744996278082,-154.47628081,0.00069898,2]
[358366522,1744996278092,-3435.65,0.000699,120]
[358366523,1744996278102,-1000.0,0.000699,120]
[358366524,1744996278112,-1000.0,0.000699,120]
[358366525,1744996278121,-1000.0,0.000699,120]
[358366526,1744996278131,-1000.0,0.000699,120]
[358366527,1744996278140,-1000.0,0.000699,120]
[358366528,1744996278149,-795.56,0.000699,120]
[358366529,1744996278159,-715.0,0.000699,25]
[358366530,1744996278168,-86563.3235614,0.00069932,6]
[358366531,1744996278178,-72831.8251827,0.00069932,6]
[358366532,1744996278187,-5352.5856201,0.00069932,6]
[358366533,1744996278197,-4503.5075378,0.00069932,6]
[358366534,1744996278207,-11396.8498807,0.00069932,6]
[358366535,1744996278217,-9588.9730661,0.00069932,6]
[358366536,1744996278227,-940.93,0.00069953,2]
[358366537,1744996278236,-1026.0344484,0.0006997,90]
[358366538,1744996278246,-47294.06770253,0.0006998,30]
[358366539,1744996278255,-47294.06770253,0.0006998,30]
[358366540,1744996278265,-47294.06770253,0.0006998,30]
[358366541,1744996278275,-155.811591,0.0006998,30]
[358366542,1744996278285,-3537809.7826678,0.0006998,9]
[358366543,1744996278556,-500.0,0.00054794,120]
[358366544,1744996278566,-5064708.25680178,0.0006998,9]
[358366545,1744996278578,-359769.50989708,0.0006998,9]
[358366546,1744996278589,-64939.42649536,0.0006998,9]
[358366547,1744996278600,-81963.96573724,0.0006998,9]
[358366548,1744996278615,-151.0,0.00043,14]
[358366549,1744996278625,-8028.285775,0.0006998,9]
[358366550,1744996278643,-500.0,0.00054794,120]
[358366551,1744996278653,-310.87227544,0.00054794,2]
[358366552,1744996278662,-47630.41082694,0.0006998,9]
[358366553,1744996278750,-151.0,0.00047,14]
[358366554,1744996278759,-151.0,0.00048,55]
[358366555,1744996280371,-151.0,0.00033922,2]
[358366556,1744996280380,-151.0,0.00033922,2]
[358366557,1744996280390,-381.0,0.00047,7]
[358366558,1744996280400,-305.91552198,0.00048,55]
[358366559,1744996280412,-62.92053402,0.00048,55]
[358366560,1744996280421,-151.0,0.0005,120]
[358366561,1744996280430,-166.93514602,0.00051678,15]
[358366562,1744996280445,-502.0,0.00051678,15]
[358366563,1744996280456,-498.98821648,0.00051678,15]
[358366573,1744996810689,424.07,0.000238,2]
[358366574,1744996914366,150.78838331,0.00048205,30]